Cogmind - Beta 15 @@@ ROGUE MODE // 2025.05.09 @ 22:00:45 Player: bgdn01 Result: Destroyed by G-34 Mercenary with Small Laser Performance ------------- Evolutions (1) 500 Regions Visited (2) 400 Robots Destroyed (21) 105 Value Destroyed (494) 494 Prototype IDs (0) 0 Alien Tech Used (0) 0 Bonus (0) 0 TOTAL SCORE: 1499 Bonus ------- None Cogmind --------- Core Integrity 0/400 Matter 300/300 Energy 100/100 System Corruption 0% Temperature Cool (6) Movement Core (200) Ox3 Location -9/Materials Parts ------- > --- POWER (1) -------- (None) > --- PROPULSION (3) --- (None) > --- UTILITY (3) ------ Medium Storage Unit > --- WEAPON (2) ------- (None) > --- INVENTORY (10) --- Aluminum Leg Aluminum Leg Weight Redist. System Assault Rifle Assault Rifle Peak State ------------ > --- POWER ------------ Ion Engine > --- PROPULSION ------- Aluminum Leg Aluminum Leg > --- UTILITY ---------- Weight Redist. System Weight Redist. System > --- WEAPON ----------- Assault Rifle Assault Rifle > --- INVENTORY -------- Light Ion Engine Aluminum Leg Aluminum Leg [Rating: 9] Favorites ----------- Power Ion Engine Engine Ion Engine Propulsion Aluminum Leg Leg Aluminum Leg Utility Weight Redist. System Device Weight Redist. System Storage Medium Storage Unit Weapon Assault Rifle Ballistic Gun Assault Rifle Launcher Rocket Launcher Impact Weapon Heavy Hammer Build | -11 -10 -9 ------- Run | Yrd Mat Mat Slots Evolved 2 | . . 2 Power . | . . . Propulsion 1 | . . 1 Utility 1 | . . 1 Weapon . | . . . Parts Attached 15 | 6 9 . Power 2 | 2 . . Engine 2 | 2 . . Core . | . . . Reactor . | . . . Propulsion 5 | 2 3 . Treads . | . . . Leg 5 | 2 3 . Wheel . | . . . Hover . | . . . Flight . | . . . Utility 3 | . 3 . Device 2 | . 2 . Storage 1 | . 1 . Processor . | . . . Hackware . | . . . Protection . | . . . Artifact . | . . . Weapon 5 | 2 3 . Energy Gun . | . . . Energy Cannon . | . . . Ballistic Gun 2 | 2 . . Ballistic Cannon . | . . . Launcher 2 | . 2 . Special Weapon . | . . . Impact Weapon 1 | . 1 . Slashing Weapon . | . . . Piercing Weapon . | . . . Special Melee Weapon . | . . . Unidentified Prototypes . | . . . Parts Lost 9 | . 4 5 Power 1 | . 1 . Propulsion 5 | . 2 3 Utility 1 | . . 1 Weapon 2 | . 1 1 Highest Loss Streak 5 | . 2 5 To Critical Strikes . | . . . Average Backups 4 | . 4 5 Power . | . . . Propulsion 1 | . 2 2 Utility . | . . 1 Weapon 2 | . 2 2 Tool/Special . | . . . Unused Backups 2 | . . 2 Power . | . . . Propulsion 2 | . . 2 Utility . | . . . Weapon . | . . . Tool/Special . | . . . Average Slot Usage (%) 80 | . 86 59 Engine 6 | . 7 . Leg 26 | . 26 26 Device 22 | . 25 10 Storage 3 | . 1 11 Ballistic Gun 12 | . 15 . Launcher 2 | . 3 . Impact Weapon 6 | . 4 11 Peak Build Rating 9 | 5 9 8 Average Rating 7 | 3 8 7 On Entrance 4 | . 5 7 Naked Turns . | . . . Heaviest Build 13 | 9 13 13 Greatest Support 30 | 20 26 30 Greatest Overweight (x) 2 | 2 2 . Average Overweight (x) . | . . . Largest Inventory Capacity 10 | 5 10 10 Average Capacity 6 | 5 5 10 Most Carried 6 | 3 6 6 Average Carried 4 | . 4 5 Final Capacity 10 | 5 10 10 Final Carried 6 | 3 6 5 Class Distribution -------------------- 100% | Mutant Dominant Class ---------------- Mutant | -10/Materials Mutant | -9/Materials Resources | -11 -10 -9 ----------- Run | Yrd Mat Mat Matter Collected 506 | 280 203 23 Remotely . | . . . Salvage Created 596 | 36 447 113 Parts 29 | 3 24 2 Haulers Intercepted . | . . . Recyclers Shooed . | . . . Parts Field Recycled . | . . . Retrieved Matter . | . . . Parts Self-Destructed . | . . . Prevented . | . . . Kills | -11 -10 -9 ------- Run | Yrd Mat Mat Combat Hostiles Destroyed 16 | 1 12 3 Melee 4 | . 2 2 Guns 6 | 1 5 . AOE 3 | . 3 . Classes Destroyed 8 | 1 6 1 Worker 1 | . 1 . Builder 1 | . 1 . Recycler 1 | . 1 . Operator 1 | . 1 . Watcher 1 | . 1 . Swarmer 6 | . 6 . Grunt 9 | 1 6 2 Sentry 1 | . . 1 Best Kill Streak 10 | 1 10 2 Combat Bots Only 8 | 1 8 2 Max Kills in Single Turn 3 | 1 3 1 Gunslinging . | . . . Exploded 3 | . 3 . Melee 1 | . 1 1 Uniques/NPCs Destroyed . | . . . Combat | -11 -10 -9 -------- Run | Yrd Mat Mat Hostile Shots Fired 196 | 7 72 117 Missed 51 | 2 19 30 Hits 145 | 5 53 87 Projectile 145 | 5 53 87 Critical Strikes 1 | . . 1 Damage Taken 1525 | 56 595 874 Core 535 | 10 123 402 Absorbed by Shields . | . . . Core Remaining (%) 71 | 96 46 . Volleys Fired 25 | 5 20 . Largest 2 | 2 2 . Hottest 66 | 40 66 . Shots Fired 50 | 10 40 . Gun 48 | 10 38 . Cannon . | . . . Launcher 2 | . 2 . Special . | . . . Kinetic 48 | 10 38 . Thermal . | . . . Explosive 2 | . 2 . Electromagnetic . | . . . Robot Hit Streak 4 | 4 3 . Robot Miss Streak 9 | 2 9 . Penetration Max . | . . . Secondary Targets 2 | . 2 . Max Gunslinging Chain 1 | . 1 . Shots Hit Robots 48 | 7 28 13 Core Hits 18 | 2 14 2 Critical Kills 1 | . 1 . Critical Parts Destroyed 4 | . 2 2 Critical Strikes 5 | . 3 2 Destroy 1 | . 1 . Smash 4 | . 2 2 Melee Attacks 32 | . 16 16 Impact 32 | . 16 16 Slashing . | . . . Piercing . | . . . Sneak Attacks 2 | . 2 . Combat Hostiles . | . . . Follow-up Attacks . | . . . Damage Inflicted 1553 | 84 1024 445 Guns 300 | 84 216 . Cannons . | . . . Explosions 232 | . 232 . Melee 1021 | . 576 445 Ramming . | . . . Kinetic 300 | 84 216 . Thermal . | . . . Explosive 232 | . 232 . Electromagnetic . | . . . Impact 1021 | . 576 445 Slashing . | . . . Piercing . | . . . Highest Corruption . | . . . Average Corruption . | . . . Corruption Purged . | . . . Corruption Blocked . | . . . Overload Shots . | . . . Overflow Damage 299 | . 227 72 Projectiles . | . . . Explosions . | . . . Melee 299 | . 227 72 Knockbacks 5 | . 5 . Impact 5 | . 5 . Kinetic . | . . . Secondary . | . . . Self-Inflicted Damage 40 | . 40 . Shots 2 | . 2 . Rammed . | . . . Targets Rammed . | . . . Kicked . | . . . Crushed . | . . . Highest Temperature 2 | . 2 . Average Temperature 1 | . 1 . Received Heat Transfer 468 | 30 186 252 Siege Activations . | . . . Martial Activations . | . . . Shielding Activations . | . . . Robots Disrupted . | . . . Combat Hostiles . | . . . Robots Corrupted 5 | . 4 1 Combat Hostiles 3 | . 2 1 Parts Fried 5 | . 5 . Impact Corruptions 13 | . 10 3 Robots Melted . | . . . Combat Hostiles . | . . . Parts Melted . | . . . Heat Transferred . | . . . Parts Sabotaged . | . . . Parts Stolen . | . . . Parts Stripped . | . . . Power Chain Reactions . | . . . Alert | -11 -10 -9 ------- Run | Yrd Mat Mat Maximum Alert Level . | . . . Low Security (%) 100 | 100 100 100 Level 1 . | . . . Level 2 . | . . . Level 3 . | . . . Level 4 . | . . . Level 5 . | . . . High Security . | . . . Max Security . | . . . Peak Influence 165 | 20 165 58 Initial 58 | . 13 58 Average 55 | 2 69 37 Influence Increases 450 | 20 350 80 Destroy 0b10 Robot/C 320 | 20 240 60 Destroy 0b10 Robot/NC 25 | . 25 . Destroy Leader 72 | . 52 20 Trap Triggered on 0b10 10 | . 10 . Successful Hack 10 | . 10 . Destroy Structure 13 | . 13 . Influence Decreases 442 | . 231 211 Entered New Map 88 | . 7 81 Time Decay 264 | . 184 80 Lost Part 90 | . 40 50 Squads Dispatched 3 | . 2 1 Investigation . | . . . Extermination . | . . . Reinforcement 3 | . 2 1 Assault . | . . . Garrison . | . . . Intercept . | . . . Searches Triggered . | . . . Construction Impeded . | . . . Haulers Reinforced . | . . . Active Scanning Responses . | . . . Cargo Convoy Interrupts . | . . . Stealth | -11 -10 -9 --------- Run | Yrd Mat Mat Distress Signals 1 | . 1 . Communications Jammed . | . . . Distress Signals . | . . . Times Spotted 31 | 1 19 11 Peak Tracking Total 8 | 1 6 8 Tactical Retreats . | . . . Traps | -11 -10 -9 ------- Run | Yrd Mat Mat Traps Triggered . | . . . Indirectly . | . . . Trap Hack Attempts . | . . . Triggered . | . . . Disarmed . | . . . Reprogrammed 4 | . 4 . Reused 1 | . 1 . Traps Extracted . | . . . Installed . | . . . Triggered 1 | . 1 . Machines | -11 -10 -9 ---------- Run | Yrd Mat Mat Machines Disabled . | . . . Max in Single Turn . | . . . Machines Repaired . | . . . Machines Dismantled . | . . . Machines Sabotaged . | . . . Overloaded Fab Kills . | . . . Hacking | -11 -10 -9 --------- Run | Yrd Mat Mat Machines Accessed 4 | . 4 . Terminals 4 | . 4 . Fabricators . | . . . Repair Stations . | . . . Recycling Units . | . . . Scanalyzers . | . . . Garrison Access . | . . . Total Hacks 11 | . 11 . Successful 6 | . 6 . Failed 5 | . 5 . Catastrophic 1 | . 1 . Database Lockouts . | . . . Manual . | . . . Terminals 11 | . 11 . Fabricators . | . . . Repair Stations . | . . . Recycling Units . | . . . Scanalyzers . | . . . Garrison Access . | . . . Terminal Hacks 6 | . 6 . Record 2 | . 2 . Emergency Access Points 1 | . 1 . Locate Traps 2 | . 2 . Reprogram Traps 1 | . 1 . Fabricator Hacks . | . . . Repair Station Hacks . | . . . Recycling Unit Hacks . | . . . Scanalyzer . | . . . Garrison Access Hacks . | . . . Unauthorized Hacks . | . . . Terminals . | . . . Fabricators . | . . . Repair Stations . | . . . Recycling Units . | . . . Scanalyzers . | . . . Garrison Access . | . . . Data Cores Recovered . | . . . Used . | . . . Hacking Detections 4 | . 4 . Full Trace Events . | . . . Feedback Events . | . . . Feedback Blocked . | . . . Robot Schematics Acquired . | . . . Robots Built . | . . . Authchips . | . . . Time . | . . . Total Robot Build Rating . | . . . Part Schematics Acquired . | . . . Parts Built . | . . . Authchips . | . . . Time . | . . . Total Part Build Rating . | . . . Parts Repaired . | . . . Time . | . . . Parts Recycled . | . . . Recycled Matter . | . . . Retrieved Matter . | . . . Retrieved Components . | . . . Parts Scanalyzed . | . . . Part Schematics Acquired . | . . . Parts Damaged . | . . . Bothacking | -11 -10 -9 ------------ Run | Yrd Mat Mat Used RIF Installer . | . . . Robots Hacked . | . . . Non-combat . | . . . Combat . | . . . Robot Hacks Applied . | . . . Relay Couplers Released . | . . . Fabnet Peak Effective % . | . . . Robots Rewired . | . . . Allies Hacked . | . . . Hacks Repelled . | . . . Allies | -11 -10 -9 -------- Run | Yrd Mat Mat Total Allies . | . . . Largest Group . | . . . Highest-Rated Group . | . . . Highest-Rated Ally . | . . . Total Orders . | . . . Ally Attacks . | . . . Total Damage . | . . . Kills . | . . . Allies Corrupted . | . . . Allies Melted . | . . . Intel | -11 -10 -9 ------- Run | Yrd Mat Mat Active Infowar (turns) . | . . . Robot Analysis Total . | . . . Derelict Logs Recovered . | . . . Drone Launches . | . . . Drone Recoveries . | . . . Exploration | -11 -10 -9 ------------- Run | Yrd Mat Mat Turns Passed 858 | 98 600 160 Spaces Moved 536 | 74 389 73 Core 28 | 24 4 . Treads . | . . . Legs 508 | 50 385 73 Wheels . | . . . Hover . | . . . Flight . | . . . Fastest Speed 50 | 50 120 120 Average Speed 117 | 98 120 120 Slowest Speed 150 | 150 150 120 Overloaded Moves . | . . . Propulsion Burnouts . | . . . Robots Hopped . | . . . Potential Cave-ins . | . . . Cave-ins Triggered . | . . . Exploration Rate (%) 24 | 7 61 5 Regions Visited 2 Branch Regions . Pre-discovered Areas . | . . . Known Exits Taken . | . . . Unknown Exits Taken 2 | 1 1 . Scrap Searched . | . . . Spaces Dug 1 | . 1 . Terrain Destroyed 15 | . 15 . Melee 1 | . 1 . Projectile . | . . . AOE 14 | . 14 . Terrain Rammed . | . . . Walls Destroyed . | . . . Machines Disabled . | . . . Actions | -11 -10 -9 --------- Run | Yrd Mat Mat Total 654 | 86 451 117 Wait 37 | . 10 27 Move 534 | 73 388 73 Hop . | . . . Pick Up 6 | 2 4 . Fast Attach 10 | 5 5 . Attach 2 | . 1 1 Detach 1 | . 1 . Swap 4 | 1 3 . Drop 3 | . 3 . Fire 25 | 5 20 . Melee 32 | . 16 16 Ram . | . . . Kick . | . . . Crush . | . . . Escape Stasis . | . . . Rewire . | . . . Trap . | . . . Miscellaneous . | . . . Route ------- -11/Scrapyard -10/Materials (discovered 4 exits: [*Mat x2] / [*Min x2]) -9/Materials History --------- Turn | Location | Event 2 | -11/Scrapyard | Met Revision 17 67 | -11/Scrapyard | Discovered new exit (range 8) 99 | -11/Scrapyard | Entered Materials 204 | -10/Materials | Discovered new exit (range 7) 302 | -10/Materials | Discovered new exit (range 3) 304 | -10/Materials | Build established: Mutant 362 | -10/Materials | Discovered new exit (range 12) 457 | -10/Materials | Destroyed 8 combat bots 541 | -10/Materials | Discovered new exit (range 11) 688 | -10/Materials | Core integrity fell below 50% 699 | -10/Materials | Entered another Materials area 699 | -9/Materials | Evolved 2 slots: Propulsion x1, Utility x1 848 | -9/Materials | Core integrity fell below 50% 857 | -9/Materials | Core integrity fell below 20% 859 | -9/Materials | Destroyed by G-34 Mercenary with Small Laser Last Messages --------------- 00792_ Destroyed Imp. Ion Engine. 00792_ Y-45 Defender system corrupted by crushing effect. 00802_ Destroyed Heat Sink. 00802_ Y-45 Defender system corrupted by crushing effect. 00803_ Y-45 Defender system terminally corrupted. 00817_ G-47 Trooper suffers critical hit (Smash). 00817_ Destroyed Aluminum Leg. 00817_ G-47 Trooper system corrupted by crushing effect. 00820_ G-47 Trooper destroyed. 00821_ K-01 Serf collects debris. 00823_ Acquired 23 matter. 00825_ ALERT: Hostiles spotted, dispatching reinforcements to Terminal M003. 00826_ K-01 Serf collects debris. 00834_ C-30 ARC bursts open, deploying its payload. 00834_ S-10 Pest unfolds itself. 00838_ Aluminum Leg destroyed. 00842_ Weight Redist. System destroyed. 00844_ G-34 Mercenary destroyed. 00852_ Hvy. Hammer destroyed. Map ----- +----------------------------------------------------+ | ???????????????????????????????????????? | | ???????????????????????????????????????? | | ???????????????????????????????????????? | | ???????????????????????????????????????? | | ?????????????????????????????########### | | ?????????????????????????##### # | | ?????????????????????????# # # | | ?????????????????????????# # # | | ?????????????????????????# # """"""" # | | ?????????????????????????# + """"""" # | | ?????????????????????????# # """"""" # | | ?????????????????????????# # """"""" # | | ?????????????????????????# # """"""" # | | ?????????????????????????# ########### | | ?????????????????????????# #?????????? | | ?????????????????????????# #?????????? | | ?????????????????????????# #?????????? | | ?????????????????????????# #?????????? | | ?????????????????????????# #?????????? | | ?????????????????????????# #?????????? | | ?????????????????????????# #?????????? | | ?????????????????????????# #?????????? | | ?????????????## ?????????# #?????????? | | ?????????????# ####### #?????????? | | ?????????????# % ss [% # """???? | | ?????????????# s @ ; #? | | ?????????????# gg!% # """ #? | | ?????????????# ###/####s # """ ??? | | ?????????????####??? ????#g #? """???? | | ???????????????????# ?????+ #? ???? | | ??????????????????????????## #??#####??? | | ???????????????????????????? #?????????? | | ???????????????????????????? #?????????? | | ???????????????????????????? #?????????? | | ???????????????????????????? #?????????? | | ???????????????????????????? #?????????? | | ???????????????????????????? ?????????? | | ???????????????????????????? ?????????? | | ????????????????????????????? ?????????? | | ????????????????????????????? ?????????? | | ???????????????????????????????????????? | | ???????????????????????????????????????? | | ???????????????????????????????????????? | | ???????????????????????????????????????? | | ???????????????????????????????????????? | | ???????????????????????????????????????? | | ???????????????????????????????????????? | | ???????????????????????????????????????? | | ???????????????????????????????????????? | | ???????????????????????????????????????? | +----------------------------------------------------+ Best States ------------- Heat Dissipation 28 Energy Generation 10 Energy Capacity 250 Matter Stores 300 Matter Capacity 300 Sight Range 16 Terrain Scan Density 10 Additional Mass Support 6 Evasion (%) 55 Item Schematics ----------------- None Robot Schematics ------------------ None Fabricated ------------ Nothing Repaired ---------- Nothing Alien Tech Used ----------------- None Achievements -------------- Power Corrupts Storm Trooper Challenges ------------ None Game ------ Seed StructuralHackingMultitool Manual? 0 Play Time 00:23:45 Cumulative 0.8 hours Start 2025.05.09 @ 21:27:58 End 2025.05.09 @ 22:00:45 Sessions 1 Manual Loads 0 Difficulty Rogue Special Mode None Game No. 3 Rogue 3 Adventurer 0 Explorer 0 Win Type - Total 0 Types 0/0/0/0/0/0/0/0/0/0 Lore% 0 Gallery% 1 Achievement% 2 Wizard Run 0 Options --------- Layout 0 ASCII 0 Keyboard 0 Movement Numpad Keybinds 0 Fullscreen 2 Font 18/CogNarrow Map View 38x25 Zoom Use 96% Tactical HUD 1 Map Filters NONE Filters NONE Steam 1 RUN: 7c427943-e788-4b50-a140-e2b6871c1ff0